[Event "NED-ch U16 Youth 2019"]
[Site "Assen"]
[Date "2019.05.02"]
[Round "5.1"]
[White "Grutter, Tim"]
[Black "Bruil, Rembrandt"]
[Result "1-0"]
[ECO "B23"]
[WhiteElo "2029"]
[BlackElo "2178"]
[Annotator "NA"]
[PlyCount "73"]
[EventDate "2019.04.28"]
[EventType "swiss"]
[EventCountry "NED"]
[SourceTitle "playchess.com"]
[Source "ChessBase"]
[SourceQuality "1"]
[TimeControl "40/5400+30:1800+30"]

1. e4 {[%emt 0:00:00]} c5 {[%emt 0:00:00]} 2. Nc3 {[%emt 0:00:00]} Nc6 {[%emt 0:00:00]} 3. Bb5 {[%emt 0:00:00]} Nd4 {[%emt 0:00:00]} 4. Bc4 {[%emt 0:00:00]} d6 {[%emt 0:00:22]} 5. Nge2 {[%emt 0:02:27]} g6 {[%emt 0:01:26]} 6. Nxd4 {[%emt 0:01:03]} cxd4 {[%emt 0:00:03]} 7. Ne2 {[%emt 0:00:12]} Bg7 {[%emt 0:01:18]} 8. d3 {[%emt 0:00:53]} e5 {[%emt 0:01:09]} 9. O-O {[%emt 0:02:15]} Nf6 {[%emt 0:01:53]} 10. f4 {[%emt 0:02:55]} O-O {[%emt 0:01:26]} 11. Qe1 {[%emt 0:04:03]} a6 {[%emt 0:25:07]} (11... Be6 $11) 12. Qh4 $14 {[%emt 0:04:13]} Qb6 {[%emt 0:13:40]} 13. fxe5 {[%emt 0:02:27]} dxe5 {[%emt 0:00:13]} 14. Bg5 {[%emt 1:16:32]} Ng4 {[%emt 0:04:11]} 15. Be7 {[%emt 0:00:00]} Bd7 {[%emt 0:00:33]} 16. Bxf8 {[%emt 0:00:00]} Rxf8 {[%emt 0:02:00]} 17. Rxf7 {[%emt 0:00:00]} Rxf7 {[%emt 0:08:31]} 18. Qe7 {[%emt 0:00:00]} Qf6 {[%emt 0:04:50]} 19. Qxd7 {[%emt 0:00:00]} Ne3 {[%emt 0:02:45]} 20. Qxf7+ {[%emt 0:00:00]} Qxf7 {[%emt 0:00:05]} 21. Bxf7+ {[%emt 0:00:00]} Kxf7 {[%emt 0:00:04]} 22. c3 {[%emt 0:00:00]} Ke7 {[%emt 0:00:53]} 23. Rc1 {[%emt 0:00:00]} Kd7 {[%emt 0:01:22]} 24. h3 {[%emt 0:00:00]} Bf6 {[%emt 0:01:11]} 25. Kf2 {[%emt 0:00:00]} h5 {[%emt 0:01:54]} 26. cxd4 {[%emt 0:00:00]} exd4 {[%emt 0:00:03]} 27. Nf4 {[%emt 0:00:00]} Bg5 {[%emt 0:02:54]} 28. Kf3 {[%emt 0:00:00]} Nxg2 {[%emt 0:02:22]} 29. Kxg2 {[%emt 0:00:00]} Bxf4 {[%emt 0:00:05]} 30. Rf1 {[%emt 0:00:00]} Bg5 {[%emt 0:02:05]} 31. Rf7+ {[%emt 0:00:00]} Be7 {[%emt 0:00:04]} 32. Rg7 {[%emt 0:00:00]} g5 {[%emt 0:00:22]} 33. Rh7 {[%emt 0:00:00]} h4 {[%emt 0:01:17]} 34. Kf3 {[%emt 0:00:00]} Ke6 {[%emt 0:00:45]} 35. Kg4 {[%emt 0:00:00]} b5 {[%emt 0:00:59]} 36. Rxe7+ {[%emt 0:00:00]} Kxe7 {[%emt 0:00:09]} 37. Kxg5 {[%emt 0:00:00]} 1-0

[Event "NED-ch U16 Youth 2019"]
[Site "Assen"]
[Date "2019.05.02"]
[Round "5.2"]
[White "Hilwerda, Jonas"]
[Black "Shakhverdian, William"]
[Result "1-0"]
[ECO "C48"]
[WhiteElo "2312"]
[BlackElo "1949"]
[Annotator "NA"]
[PlyCount "101"]
[EventDate "2019.04.28"]
[EventType "swiss"]
[EventCountry "NED"]
[SourceTitle "playchess.com"]
[Source "ChessBase"]
[SourceQuality "1"]
[TimeControl "40/5400+30:1800+30"]

1. e4 {[%emt 0:00:00]} e5 {[%emt 0:00:00]} 2. Nf3 {[%emt 0:00:00]} Nc6 {[%emt 0:00:00]} 3. Nc3 {[%emt 0:00:00]} Nf6 {[%emt 0:00:27]} 4. Bb5 {[%emt 0:00:00]} Bc5 {[%emt 0:00:14]} 5. O-O {[%emt 0:00:00]} d6 {[%emt 0:00:57]} 6. d4 {[%emt 0:00:00]} exd4 {[%emt 0:01:39]} 7. Nxd4 {[%emt 0:00:00]} Bd7 {[%emt 0:01:25]} 8. Nf5 {[%emt 0:00:02]} Bxf5 {[%emt 0:02:21] C48: Four Knights: 4 Bb5, replies other than 4...Bb4} 9. exf5 {[%emt 0:00:01]} O-O {[%emt 0:00:49]} 10. Bg5 {[%emt 0:00:02]} Nd4 {[%emt 0:04:40]} (10... h6 11. Bh4 Nd4 12. Bd3 d5 13. Bxf6 Qxf6 14. Nxd5 Qg5 15. b4 Rad8 16. c4 {½-½ (25) Nitin,S (2428)-Romanov,E (2644) Graz 2017}) 11. Ne4 $146 {[%emt 0:03:21]} ({Predecessor:} 11. Bd3 d5 12. Bxf6 gxf6 13. Na4 Qd6 14. Qg4+ Kh8 15. Qh4 Kg7 16. Rfd1 Rfe8 17. Qg4+ Kh8 18. Qh4 Kg7 19. Qg4+ Kh8 20. Qh4 Kg7 {½-½ (20) Badev,K (2348)-Petkov,V (2498) Albena 2010}) 11... Nxb5 {[%emt 0:21:12]} 12. Nxf6+ {[%emt 0:00:44]} gxf6 {[%emt 0:03:41]} 13. Bh6 {[%emt 0:00:02]} Kh8 {[%emt 0:00:24]} 14. Bxf8 {[%emt 0:00:02]} Qxf8 {[%emt 0:00:07] [#]} 15. a4 $1 {[%emt 0:00:12]} Nd4 {[%emt 0:02:28] [#]} 16. b4 $1 {[%emt 0:00:32]} Nxf5 {[%emt 0:01:09]} (16... Re8 $16) 17. bxc5 {[%emt 0:00:22]} dxc5 {[%emt 0:00:04]} 18. Rb1 {[%emt 0:08:30]} (18. Qd5 $18 {has better winning chances.} Nd4 19. Qxb7) 18... b6 {[%emt 0:04:19]} 19. c3 $16 {[%emt 0:00:23]} Qg7 {[%emt 0:04:56]} 20. Kh1 {[%emt 1:25:47]} Rg8 {[%emt 0:02:59]} 21. g3 {[%emt 0:00:00]} Qh6 {[%emt 0:04:10]} 22. Qf3 {[%emt 0:01:00]} Qh3 {[%emt 0:07:51]} 23. Rfe1 {[%emt 0:00:00]} Rg6 {[%emt 0:01:26]} 24. Re4 {[%emt 0:00:00]} Nd6 {[%emt 0:05:31]} 25. Re2 {[%emt 0:00:00]} Rh6 {[%emt 0:04:30]} 26. Qg2 {[%emt 0:00:00]} Qg4 {[%emt 0:01:21]} 27. f3 {[%emt 0:00:00]} Qc4 {[%emt 0:03:11]} 28. Re7 {[%emt 0:00:00]} Qd3 {[%emt 0:02:13]} 29. Rc1 {[%emt 0:00:00]} Nf5 {[%emt 0:01:37]} 30. Re8+ {[%emt 0:00:00]} Kg7 {[%emt 0:00:09]} 31. Qf2 {[%emt 0:00:00]} Qd6 {[%emt 0:06:06]} 32. Kg2 {[%emt 0:00:00]} Rg6 {[%emt 0:00:28]} 33. Rce1 {[%emt 0:00:00]} Qd3 {[%emt 0:04:13]} 34. R1e4 {[%emt 0:00:00]} Qxc3 {[%emt 0:01:26]} 35. Ra8 {[%emt 0:00:00]} a5 {[%emt 0:03:53]} 36. Ra7 {[%emt 0:00:00]} Nd6 {[%emt 0:02:57]} 37. Re3 {[%emt 0:00:00]} Qd4 {[%emt 0:00:28]} 38. Rxc7 {[%emt 0:00:00]} Qxa4 {[%emt 0:01:36]} 39. Ree7 {[%emt 0:00:00]} Qc4 {[%emt 0:00:58]} 40. Qd2 {[%emt 0:00:00]} Nf5 {[%emt 0:00:54]} 41. Rxf7+ {[%emt 0:15:48]} Qxf7 {[%emt 0:30:07]} 42. Rxf7+ {[%emt 0:00:01]} Kxf7 {[%emt 0:00:07]} 43. Qd5+ {[%emt 0:00:04]} Ke7 {[%emt 0:00:57]} 44. Qxf5 {[%emt 0:00:10]} Kd6 {[%emt 0:00:25]} 45. Kf2 {[%emt 0:00:38]} Kc6 {[%emt 0:00:25]} 46. Ke3 {[%emt 0:00:19]} a4 {[%emt 0:00:12]} 47. Kd3 {[%emt 0:01:04]} Kb5 {[%emt 0:00:58]} 48. Kc3 {[%emt 0:00:52]} Rg8 {[%emt 0:00:40]} 49. Qd7+ {[%emt 0:00:40]} Ka5 {[%emt 0:00:06]} 50. Kc4 {[%emt 0:00:06]} Ka6 {[%emt 0:00:21]} 51. Qxa4+ {[%emt 0:00:03]} 1-0

[Event "NED-ch U16 Youth 2019"]
[Site "Assen"]
[Date "2019.05.02"]
[Round "5.3"]
[White "Elgersma, Onno"]
[Black "Cchung, Chi Yun"]
[Result "0-1"]
[ECO "B41"]
[WhiteElo "2174"]
[BlackElo "1836"]
[Annotator "NA"]
[PlyCount "148"]
[EventDate "2019.04.28"]
[EventType "swiss"]
[EventCountry "NED"]
[SourceTitle "playchess.com"]
[Source "ChessBase"]
[SourceQuality "1"]
[TimeControl "40/5400+30:1800+30"]

1. e4 {[%emt 0:00:00]} c5 {[%emt 0:00:00]} 2. Nf3 {[%emt 0:00:00]} e6 {[%emt 0:00:00]} 3. d4 {[%emt 0:00:00]} cxd4 {[%emt 0:00:00]} 4. Nxd4 {[%emt 0:00:00]} a6 {[%emt 0:00:00]} 5. c4 {[%emt 0:00:03]} Nf6 {[%emt 0:00:00]} 6. Nc3 {[%emt 0:00:04]} Bb4 {[%emt 0:00:00]} 7. Qd3 {[%emt 0:00:45]} d5 {[%emt 0:00:05]} 8. exd5 {[%emt 0:05:44]} exd5 {[%emt 0:00:16]} 9. Be2 {[%emt 0:01:38]} O-O {[%emt 0:02:26]} 10. O-O {[%emt 0:05:07]} Nc6 {[%emt 0:01:25]} 11. Nxc6 {[%emt 0:04:41]} bxc6 {[%emt 0:00:10]} 12. Bf3 {[%emt 0:01:03]} a5 {[%emt 0:17:46]} 13. a3 $15 {[%emt 0:02:55]} Bd6 {[%emt 0:19:50]} 14. Rd1 {[%emt 0:23:50]} Ba6 {[%emt 0:05:49]} 15. b3 {[%emt 0:06:12]} Be5 {[%emt 0:15:59]} 16. Bb2 {[%emt 0:14:31]} dxc4 {[%emt 0:14:24]} 17. Qf5 {[%emt 0:03:51]} Qc7 {[%emt 0:01:52]} 18. b4 {[%emt 0:00:36]} Bc8 {[%emt 0:02:45]} 19. Qg5 {[%emt 0:01:45]} Bxh2+ {[%emt 0:03:54]} 20. Kh1 {[%emt 0:00:36]} Bf4 {[%emt 0:01:57]} 21. Qc5 {[%emt 0:09:05]} Qa7 {[%emt 0:11:02]} 22. Qxc4 {[%emt 0:00:46]} Qxf2 {[%emt 0:00:20]} 23. Qxf4 {[%emt 0:01:35]} Qxb2 {[%emt 0:00:05]} 24. Na4 {[%emt 0:05:06]} Qf2 {[%emt 0:00:55]} 25. Rf1 {[%emt 0:06:44]} Qc2 {[%emt 0:00:18]} 26. Nb6 {[%emt 0:01:19]} Ra6 {[%emt 0:00:34]} 27. Qc7 {[%emt 0:03:21]} Bg4 {[%emt 0:00:49]} 28. b5 {[%emt 0:01:02]} Rxb6 {[%emt 0:00:38]} 29. Qxb6 {[%emt 0:00:16]} cxb5 {[%emt 0:00:09]} 30. Qxb5 {[%emt 0:00:44]} Qg6 {[%emt 0:00:10]} 31. Qe2 {[%emt 0:01:23]} Re8 {[%emt 0:00:41]} 32. Qf2 {[%emt 0:00:41]} Bxf3 {[%emt 0:01:04]} 33. Qxf3 {[%emt 0:00:23]} Ng4 {[%emt 0:00:07]} 34. Qh3 {[%emt 0:00:30]} Re5 {[%emt 0:00:51]} 35. Rad1 {[%emt 0:00:21]} h6 {[%emt 0:00:11]} 36. Rd8+ {[%emt 0:00:16]} Kh7 {[%emt 0:00:04]} 37. Qd3 {[%emt 0:00:34]} f5 {[%emt 0:00:55]} 38. Rf8 {[%emt 0:00:30]} Qh5+ {[%emt 0:00:32]} 39. Qh3 {[%emt 0:00:05]} Qg6 {[%emt 0:00:43]} 40. Qb3 {[%emt 0:01:06]} Qh5+ {[%emt 0:00:12]} 41. Qh3 {[%emt 0:30:24]} Qg5 {[%emt 0:26:17]} 42. Qg3 {[%emt 0:00:00]} Re3 {[%emt 0:02:45]} 43. Qb8 {[%emt 0:00:00]} Qh4+ {[%emt 0:02:50]} 44. Kg1 {[%emt 0:00:00]} Re5 {[%emt 0:00:33]} 45. Rh8+ {[%emt 0:00:00]} Kg6 {[%emt 0:00:09]} 46. Rxh6+ {[%emt 0:00:00]} Qxh6 {[%emt 0:00:45]} 47. Qd6+ {[%emt 0:00:00]} Kh7 {[%emt 0:00:39]} 48. Qxh6+ {[%emt 0:00:00]} Kxh6 {[%emt 0:00:10]} 49. Rb1 {[%emt 0:00:00]} Kg5 {[%emt 0:00:19]} 50. a4 {[%emt 0:00:00]} Re4 {[%emt 0:00:08]} 51. Ra1 {[%emt 0:00:00]} f4 {[%emt 0:00:17]} 52. Kf1 {[%emt 0:00:00]} Kh4 {[%emt 0:00:07]} 53. Ra3 {[%emt 0:00:00]} Re3 {[%emt 0:00:29]} 54. Ra2 {[%emt 0:00:00]} Kg3 {[%emt 0:00:17]} 55. Ra1 {[%emt 0:00:00]} f3 {[%emt 0:00:52]} 56. gxf3 {[%emt 0:00:00]} Nh2+ {[%emt 0:00:14]} 57. Kg1 {[%emt 0:00:00]} Nxf3+ {[%emt 0:00:15]} 58. Kf1 {[%emt 0:00:00]} Re1+ {[%emt 0:01:02]} 59. Rxe1 {[%emt 0:00:00]} Nxe1 {[%emt 0:00:03]} 60. Kxe1 {[%emt 0:00:00]} Kf3 {[%emt 0:00:05]} 61. Kd2 {[%emt 0:00:00]} g5 {[%emt 0:00:35]} 62. Kc3 {[%emt 0:00:00]} g4 {[%emt 0:00:06]} 63. Kc4 {[%emt 0:00:00]} g3 {[%emt 0:00:04]} 64. Kb5 {[%emt 0:00:00]} g2 {[%emt 0:00:08]} 65. Kxa5 {[%emt 0:00:00]} g1=Q {[%emt 0:00:08]} 66. Ka6 {[%emt 0:00:00]} Qg8 {[%emt 0:00:15]} 67. Kb7 {[%emt 0:00:00]} Qf7+ {[%emt 0:00:05]} 68. Ka6 {[%emt 0:00:00]} Qe8 {[%emt 0:00:06]} 69. a5 {[%emt 0:00:00]} Qa8+ {[%emt 0:00:05]} 70. Kb6 {[%emt 0:00:00]} Ke4 {[%emt 0:00:08]} 71. a6 {[%emt 0:00:00]} Ke5 {[%emt 0:00:09]} 72. a7 {[%emt 0:00:00]} Kd6 {[%emt 0:00:05]} 73. Ka6 {[%emt 0:00:00]} Kc5 {[%emt 0:00:18]} 74. Ka5 {[%emt 0:00:00]} Qxa7# {[%emt 0:00:06]} 0-1

[Event "NED-ch U16 Youth 2019"]
[Site "Assen"]
[Date "2019.05.02"]
[Round "5.4"]
[White "Honkoop, Gilian"]
[Black "Albers, Sasa"]
[Result "1-0"]
[ECO "A47"]
[WhiteElo "2038"]
[BlackElo "1690"]
[Annotator "NA"]
[PlyCount "111"]
[EventDate "2019.04.28"]
[EventType "swiss"]
[EventCountry "NED"]
[SourceTitle "playchess.com"]
[Source "ChessBase"]
[SourceQuality "1"]
[TimeControl "40/5400+30:1800+30"]

1. d4 {[%emt 0:00:00]} Nf6 {[%emt 0:00:00]} 2. Bf4 {[%emt 0:00:00]} e6 {[%emt 0:00:00]} 3. e3 {[%emt 0:00:00]} b6 {[%emt 0:00:00]} 4. Nf3 {[%emt 0:00:57]} h6 {[%emt 0:00:00]} 5. h3 {[%emt 0:00:46]} Bb7 {[%emt 0:00:09]} 6. Be2 {[%emt 0:00:49]} c5 {[%emt 0:01:17]} 7. O-O {[%emt 0:00:40]} Be7 {[%emt 0:01:10]} 8. c4 {[%emt 0:00:37]} O-O {[%emt 0:01:18]} 9. Nc3 {[%emt 0:00:06]} cxd4 {[%emt 0:00:52]} 10. Nxd4 {[%emt 0:03:47]} d6 {[%emt 0:09:07]} 11. Bg3 {[%emt 0:10:46]} Nc6 {[%emt 0:05:14]} 12. Bf3 {[%emt 0:08:34]} Qd7 $11 {[%emt 0:02:11]} 13. Rc1 {[%emt 0:09:28]} Rac8 {[%emt 0:05:00]} 14. b3 {[%emt 0:04:08]} Rfd8 {[%emt 0:05:43]} 15. e4 {[%emt 0:04:59]} Ne5 {[%emt 0:04:38]} 16. Re1 {[%emt 0:08:05]} Nxf3+ {[%emt 0:00:43]} 17. Qxf3 {[%emt 0:03:52]} a6 {[%emt 0:09:09]} 18. Qe2 {[%emt 0:07:15]} Qc7 {[%emt 0:13:07]} 19. Kh1 {[%emt 0:10:29]} Qc5 {[%emt 0:06:29]} 20. Qe3 {[%emt 0:03:38]} Nh7 {[%emt 0:06:56]} 21. f4 {[%emt 0:02:20]} Bf6 {[%emt 0:01:05]} 22. Bf2 {[%emt 0:00:33]} Bxd4 {[%emt 0:03:04]} 23. Qxd4 {[%emt 0:00:04]} Nf6 {[%emt 0:05:53]} 24. Qd2 {[%emt 0:01:55]} Qc7 {[%emt 0:05:06]} 25. Qe3 {[%emt 0:00:39]} Nd7 {[%emt 0:02:07]} 26. Qg3 {[%emt 0:08:54]} e5 {[%emt 0:06:55]} 27. Be3 {[%emt 0:02:17]} Kh7 {[%emt 0:02:07]} 28. Qf2 {[%emt 0:01:27]} Nc5 {[%emt 0:00:52]} 29. Rcd1 {[%emt 0:02:20]} exf4 {[%emt 0:01:32]} 30. Bxf4 {[%emt 0:00:44]} Rd7 {[%emt 0:01:43]} 31. Be3 {[%emt 0:04:18]} Nxe4 {[%emt 0:00:38]} 32. Nxe4 {[%emt 0:00:49]} Bxe4 {[%emt 0:00:01]} 33. Bxb6 {[%emt 0:00:06]} Qc6 {[%emt 0:00:03]} 34. Bd4 {[%emt 0:00:49]} Re8 {[%emt 0:01:46]} 35. Qg3 {[%emt 0:00:23]} f6 {[%emt 0:00:06]} 36. Rd2 {[%emt 0:00:22]} Rde7 {[%emt 0:00:08]} 37. Red1 {[%emt 0:00:33]} d5 {[%emt 0:01:08]} 38. cxd5 {[%emt 0:00:32]} Bxd5 {[%emt 0:00:01]} 39. Bg1 {[%emt 0:00:50]} Re5 {[%emt 0:00:56]} 40. Qd3+ {[%emt 0:00:29]} Be4 {[%emt 0:00:02]} 41. Qd7 {[%emt 0:05:26]} Qa8 {[%emt 0:10:46]} 42. Rc1 {[%emt 0:06:06]} Rg5 {[%emt 0:07:42]} 43. Rc7 {[%emt 0:10:37]} Ree5 {[%emt 0:08:06]} 44. h4 {[%emt 0:09:12]} Rg6 {[%emt 0:04:40]} 45. Kh2 {[%emt 0:01:15]} Bxg2 {[%emt 0:00:44]} 46. Bf2 {[%emt 0:00:26]} Qf3 {[%emt 0:00:28]} 47. Qd3 {[%emt 0:00:34]} Rd5 {[%emt 0:01:13]} 48. Qxf3 {[%emt 0:00:31]} Bxf3 {[%emt 0:00:02]} 49. Rxd5 {[%emt 0:00:17]} Rg2+ {[%emt 0:00:03]} 50. Kh3 {[%emt 0:00:10]} Bxd5 {[%emt 0:00:31]} 51. Bd4 {[%emt 0:00:17]} Kg6 {[%emt 0:01:37]} 52. Rc5 {[%emt 0:01:11]} Be4 {[%emt 0:00:47]} 53. Ra5 {[%emt 0:00:27]} Rd2 {[%emt 0:00:35]} 54. Bb6 {[%emt 0:00:36]} Bd3 {[%emt 0:00:44]} 55. Be3 {[%emt 0:00:29]} Bb5 {[%emt 0:00:28]} 56. Bxd2 {[%emt 0:00:07]} 1-0

[Event "NED-ch U16 Youth 2019"]
[Site "Assen"]
[Date "2019.05.02"]
[Round "5.5"]
[White "Gevorkjan, Lewon"]
[Black "Maters, Arthur"]
[Result "1-0"]
[ECO "D93"]
[WhiteElo "1808"]
[BlackElo "2043"]
[Annotator "NA"]
[PlyCount "79"]
[EventDate "2019.04.28"]
[EventType "swiss"]
[EventCountry "NED"]
[SourceTitle "playchess.com"]
[Source "ChessBase"]
[SourceQuality "1"]
[TimeControl "40/5400+30:1800+30"]

1. d4 {[%emt 0:00:00]} Nf6 {[%emt 0:00:00]} 2. c4 {[%emt 0:00:00]} g6 {[%emt 0:00:00]} 3. Nc3 {[%emt 0:00:00]} d5 {[%emt 0:00:00]} 4. Nf3 {[%emt 0:00:03]} Bg7 {[%emt 0:00:00]} 5. Bf4 {[%emt 0:00:10]} O-O {[%emt 0:03:23]} 6. Rc1 {[%emt 0:00:26]} c6 {[%emt 0:01:35]} 7. e3 {[%emt 0:02:26]} a5 {[%emt 0:08:24]} 8. h3 {[%emt 0:16:36]} Na6 {[%emt 0:02:44]} 9. a3 {[%emt 0:00:49]} dxc4 {[%emt 0:04:40]} 10. Bxc4 {[%emt 0:00:53]} b5 {[%emt 0:00:17]} 11. Be2 {[%emt 0:01:51]} Bb7 {[%emt 0:04:02]} 12. O-O {[%emt 0:04:14]} Rc8 $16 {[%emt 0:03:17]} 13. Bh2 {[%emt 0:06:39]} Qb6 {[%emt 0:03:58]} 14. Qd3 {[%emt 0:08:10]} Rfd8 {[%emt 0:02:03]} 15. Ne5 {[%emt 0:03:44]} Nc7 {[%emt 0:06:08]} 16. Qc2 {[%emt 0:09:02]} e6 {[%emt 0:06:34]} 17. Bf3 {[%emt 0:00:50]} Ncd5 {[%emt 0:02:07]} 18. Nd3 {[%emt 0:05:14]} Nd7 {[%emt 0:02:50]} 19. Ne4 {[%emt 0:00:53]} Bf8 {[%emt 0:04:08]} 20. Nd6 {[%emt 0:04:07]} c5 {[%emt 0:07:03]} 21. Nxc8 {[%emt 0:01:37]} Rxc8 {[%emt 0:00:13]} 22. dxc5 {[%emt 0:00:13]} Nxc5 {[%emt 0:00:11]} 23. Nxc5 {[%emt 0:00:32]} Bxc5 {[%emt 0:00:15]} 24. Qb1 {[%emt 0:05:57]} b4 {[%emt 0:05:49]} 25. axb4 {[%emt 0:02:35]} Qxb4 {[%emt 0:00:16]} 26. Bxd5 {[%emt 0:01:19]} Bxd5 {[%emt 0:00:18]} 27. Bd6 {[%emt 0:00:26]} Bxd6 {[%emt 0:08:05]} 28. Rxc8+ {[%emt 0:00:20]} Kg7 {[%emt 0:00:04]} 29. Qc2 {[%emt 0:01:10]} Be5 {[%emt 0:00:32]} 30. f4 {[%emt 0:06:01]} Bf6 {[%emt 0:03:24]} 31. Qc5 {[%emt 0:00:16]} Qxc5 {[%emt 0:00:34]} 32. Rxc5 {[%emt 0:00:02]} a4 {[%emt 0:00:08]} 33. Rf2 {[%emt 0:01:49]} h5 {[%emt 0:01:47]} 34. Rd2 {[%emt 0:01:52]} h4 {[%emt 0:03:48]} 35. Ra5 {[%emt 0:00:19]} Bb3 {[%emt 0:00:27]} 36. e4 {[%emt 0:01:17]} e5 {[%emt 0:02:57]} 37. fxe5 {[%emt 0:00:30]} Be7 {[%emt 0:00:55]} 38. Rd3 {[%emt 0:01:04]} Bc2 {[%emt 0:00:26]} 39. Rd4 {[%emt 0:01:37]} Bg5 {[%emt 0:01:47]} 40. Rdxa4 {[%emt 0:01:54]} 1-0

[Event "NED-ch U16 Youth 2019"]
[Site "Assen"]
[Date "2019.05.02"]
[Round "5.7"]
[White "Roothaan, Elmar"]
[Black "Albertus, Bram"]
[Result "1/2-1/2"]
[ECO "A90"]
[WhiteElo "1711"]
[BlackElo "1887"]
[Annotator "NA"]
[PlyCount "67"]
[EventDate "2019.04.28"]
[EventType "swiss"]
[EventCountry "NED"]
[SourceTitle "playchess.com"]
[Source "ChessBase"]
[SourceQuality "1"]
[TimeControl "40/5400+30:1800+30"]

1. d4 {[%emt 0:00:00]} f5 {[%emt 0:00:00]} 2. g3 {[%emt 0:00:00]} Nf6 {[%emt 0:00:00]} 3. Bg2 {[%emt 0:00:00]} e6 {[%emt 0:00:16]} 4. c4 {[%emt 0:00:06]} d5 {[%emt 0:00:19]} 5. a3 {[%emt 0:01:30]} c6 {[%emt 0:00:33]} 6. Nh3 {[%emt 0:00:43]} Bd6 {[%emt 0:03:56]} 7. O-O {[%emt 0:00:42]} Nbd7 {[%emt 0:01:32]} 8. Bf4 {[%emt 0:03:02]} Bxf4 {[%emt 0:02:37]} 9. Nxf4 {[%emt 0:00:08]} Qe7 {[%emt 0:00:12]} 10. Nd2 {[%emt 0:00:28]} g5 {[%emt 0:13:39]} 11. Nd3 {[%emt 0:00:21]} Qg7 {[%emt 0:00:45]} 12. cxd5 {[%emt 0:02:59]} exd5 {[%emt 0:01:36]} 13. Nf3 {[%emt 0:01:13]} g4 {[%emt 0:09:15]} 14. Nh4 {[%emt 0:09:29]} Nf8 {[%emt 0:02:56]} 15. Qd2 {[%emt 0:00:23]} Bd7 {[%emt 0:29:57]} 16. Ne5 {[%emt 0:03:04]} O-O-O {[%emt 0:03:16]} 17. Nxd7 {[%emt 0:04:04]} Qxd7 {[%emt 0:03:36]} 18. Qg5 {[%emt 0:01:45]} Ne4 {[%emt 0:03:35]} 19. Qxf5 {[%emt 0:00:11]} Ng6 {[%emt 0:02:18]} 20. Bxe4 {[%emt 0:01:35]} dxe4 {[%emt 0:03:50]} 21. Nxg6 {[%emt 0:02:11]} hxg6 {[%emt 0:02:08]} 22. Qxd7+ {[%emt 0:00:03]} Rxd7 {[%emt 0:00:06]} 23. Rad1 {[%emt 0:02:34]} Rdh7 {[%emt 0:04:11]} 24. h4 {[%emt 0:00:04]} g5 {[%emt 0:04:01]} 25. Kg2 {[%emt 0:00:13]} gxh4 {[%emt 0:00:18]} 26. gxh4 {[%emt 0:00:06]} Rxh4 {[%emt 0:03:34]} 27. Rh1 {[%emt 0:00:07]} Rh3 {[%emt 0:01:46]} 28. e3 {[%emt 0:00:40]} Kc7 {[%emt 0:00:50]} 29. Rxh3 {[%emt 0:01:25]} Rxh3 {[%emt 0:00:18]} 30. d5 {[%emt 0:00:17]} Rf3 {[%emt 0:01:29]} 31. dxc6 {[%emt 0:08:44]} Kxc6 {[%emt 0:00:19]} 32. Rc1+ {[%emt 0:02:51]} Kd6 {[%emt 0:01:31]} 33. Rc3 {[%emt 0:00:22]} a6 {[%emt 0:00:50]} 34. a4 {[%emt 0:09:33]} 1/2-1/2

[Event "NED-ch U16 Youth 2019"]
[Site "Assen"]
[Date "2019.05.03"]
[Round "6.1"]
[White "Cchung, Chi Yun"]
[Black "Grutter, Tim"]
[Result "1-0"]
[ECO "B47"]
[WhiteElo "1836"]
[BlackElo "2029"]
[Annotator "NA"]
[PlyCount "71"]
[EventDate "2019.04.28"]
[EventType "swiss"]
[EventCountry "NED"]
[SourceTitle "playchess.com"]
[Source "ChessBase"]
[SourceQuality "1"]
[TimeControl "40/5400+30:1800+30"]

1. e4 {[%emt 0:00:00]} c5 {[%emt 0:00:00]} 2. Nf3 {[%emt 0:00:00]} e6 {[%emt 0:00:00]} 3. d4 {[%emt 0:00:00]} cxd4 {[%emt 0:00:00]} 4. Nxd4 {[%emt 0:00:00]} Nc6 {[%emt 0:00:00]} 5. Nc3 {[%emt 0:00:00]} Qc7 {[%emt 0:00:00]} 6. g3 {[%emt 0:00:16]} a6 {[%emt 0:00:26]} 7. Bg2 {[%emt 0:00:07]} Nf6 {[%emt 0:01:22]} 8. O-O {[%emt 0:03:23]} Be7 {[%emt 0:01:58]} 9. Re1 {[%emt 0:00:19]} O-O {[%emt 0:01:02]} 10. Nxc6 {[%emt 0:00:35]} bxc6 {[%emt 0:00:14]} 11. e5 {[%emt 0:02:06]} Nd5 {[%emt 0:01:25]} 12. Na4 {[%emt 0:08:06]} Rd8 {[%emt 0:05:47]} 13. c4 {[%emt 0:31:18]} Nb6 {[%emt 0:00:52]} 14. Nxb6 {[%emt 0:11:36]} Qxb6 {[%emt 0:00:10]} 15. Qg4 {[%emt 0:05:58]} f5 {[%emt 0:09:37]} 16. exf6 {[%emt 0:13:12]} Bxf6 {[%emt 0:00:13]} 17. Rb1 {[%emt 0:00:08]} d5 {[%emt 0:06:34]} 18. Bg5 {[%emt 0:01:02]} Rf8 {[%emt 0:06:52]} 19. Bxf6 {[%emt 0:03:21]} Rxf6 {[%emt 0:00:16]} 20. b4 {[%emt 0:01:03]} Qxf2+ {[%emt 0:02:53]} 21. Kh1 {[%emt 0:00:12]} Rg6 {[%emt 0:12:26]} 22. Qh4 {[%emt 0:04:20]} Qf6 {[%emt 0:01:01]} 23. Qh5 {[%emt 0:02:24]} Bb7 {[%emt 0:06:12]} 24. a4 {[%emt 0:05:11]} Rg5 {[%emt 0:06:44]} 25. Qe2 {[%emt 0:02:25]} e5 {[%emt 0:02:01]} 26. b5 {[%emt 0:01:12]} axb5 {[%emt 0:01:54]} 27. axb5 {[%emt 0:00:15]} d4 {[%emt 0:05:29]} 28. Qe4 {[%emt 0:02:35]} Rc8 {[%emt 0:01:44]} 29. Rf1 {[%emt 0:01:23]} Qe7 {[%emt 0:01:49]} 30. bxc6 {[%emt 0:00:33]} Ba8 {[%emt 0:01:23]} 31. Qd5+ {[%emt 0:00:29]} Kh8 {[%emt 0:01:44]} 32. Rf7 {[%emt 0:00:45]} Qe8 {[%emt 0:01:42]} 33. Rbf1 {[%emt 0:00:58]} Rg6 {[%emt 0:03:38]} 34. Qd7 {[%emt 0:00:59]} Kg8 {[%emt 0:05:32]} 35. Bd5 {[%emt 0:00:20]} Qxd7 {[%emt 0:01:37]} 36. Rf8# {[%emt 0:00:06]} 1-0